bitfinex/quotes_ETHUSD_20220105
["timestamp","ask_amount","ask_price","bid_price","bid_amount"]
[1641377003963,1.3007022,3844.8,3844.7,20.379]
[1641377004459,0.6502522,3844.8,3844.7,20.379]
[1641377004861,0.6502522,3844.8,3844.7,20.36155456]
[1641377009613,0.6502522,3844.8,3844.7,20.0]
[1641377020667,0.65188714,3844.8,3844.7,20.0]
[1641377028562,0.65188714,3844.8,3844.7,20.379]
[1641377029566,0.40188714,3844.8,3844.7,20.379]
[1641377032919,0.40188714,3844.8,3844.7,21.1715]
[1641377035268,0.00163494,3844.8,3844.7,21.1715]
[1641377036869,0.00163494,3844.8,3844.7,36.4515]
[1641377038123,0.00163494,3844.8,3844.7,42.1835]
[1641377039529,1.0,3846.0,3845.2,6.3]
[1641377039530,0.08365607,3846.0,3845.2,6.3]
[1641377039730,5.09,3846.5,3846.0,6.3]
[1641377039932,3.50583705,3847.2,3846.4,4.74424943]
[1641377040134,3.50583705,3847.2,3847.1,15.28]
[1641377040329,3.50583705,3847.2,3847.1,0.379]
[1641377040530,3.50583705,3847.2,3847.1,0.9411639]
[1641377040732,3.40583705,3847.2,3847.1,0.9411639]
[1641377040974,3.40583705,3847.2,3847.1,0.379]
[1641377041173,0.6498913,3847.3,3847.1,0.379]
[1641377041971,0.00091186,3847.2,3847.1,1.00754623]
[1641377042172,0.00182372,3847.2,3847.1,1.00754623]
[1641377043578,0.00182372,3847.2,3847.1,16.28754623]
[1641377045012,0.00182372,3847.2,3847.1,21.01954623]
[1641377046615,0.00182372,3847.2,3847.1,22.01954623]
[1641377047015,0.00092372,3847.2,3847.1,22.01954623]
[1641377047216,0.00981147,3847.6,3847.3,15.28]
[1641377047414,0.00981147,3847.6,3847.5,20.012]
[1641377047618,0.00981147,3847.6,3847.5,20.391]
[1641377047815,0.00981147,3847.6,3847.5,21.391]
[1641377048318,0.00981147,3847.6,3847.5,20.391]
[1641377048572,0.00981147,3847.6,3847.5,5.111]
[1641377049172,0.00981147,3847.7,3847.5,5.111]
[1641377050376,0.65963927,3847.7,3847.5,5.111]
[1641377052616,0.00981147,3847.7,3847.5,5.111]
[1641377053620,0.00981147,3847.7,3847.5,20.391]
[1641377053821,0.00981147,3847.7,3847.5,21.04075]
[1641377055022,0.00981147,3847.7,3847.5,5.76075]
[1641377055622,0.00981147,3847.7,3847.6,6.65]
[1641377055827,0.00981147,3847.7,3847.6,7.029]
[1641377056065,0.02686417,3847.7,3847.6,0.379]
[1641377056664,0.02686417,3847.7,3847.6,4.429]
[1641377056864,0.02686417,3847.7,3847.6,0.379]
[1641377057565,0.02686417,3847.7,3847.6,6.1379555]
[1641377057765,0.02686417,3847.7,3847.6,3.279]
[1641377058164,0.02686417,3847.7,3847.6,4.279]
[1641377058368,0.02686417,3847.7,3847.6,3.279]
[1641377059370,0.02686417,3847.7,3847.6,0.379]
[1641377059570,0.02686417,3847.7,3847.6,2.579]
[1641377060415,0.02686417,3847.7,3847.6,0.379]
[1641377076423,3.3617072,3847.7,3847.1,0.62854623]
[1641377076627,0.6499715,3847.5,3847.1,0.62854623]
[1641377076821,3.31638796,3847.4,3847.1,0.62854623]
[1641377077022,3.33173539,3847.4,3846.3,0.379]
[1641377077225,0.74829267,3846.8,3846.0,1.1398]
[1641377077425,3.18274812,3846.7,3845.8,0.379]
[1641377077625,3.19411659,3846.7,3845.8,0.379]
[1641377077825,0.01080004,3846.6,3845.8,0.379]
[1641377078127,0.01023162,3846.5,3846.1,0.59627523]
[1641377078324,0.01023162,3846.5,3845.4,7.1043]
[1641377078325,0.6501152,3846.3,3845.4,7.1043]
[1641377078576,3.45346888,3846.2,3845.4,3.9724]
[1641377078776,0.3,3846.1,3845.2,0.379]
[1641377078976,0.00795793,3846.1,3845.2,0.379]
[1641377079179,0.0073895,3846.0,3845.2,0.379]
[1641377079377,0.0073895,3846.0,3845.3,0.51907332]
[1641377079378,0.6502616,3845.7,3845.3,0.51907332]
[1641377079576,1.9508987,3845.8,3845.3,0.51907332]
[1641377079778,0.00511581,3845.6,3845.3,0.51907332]
[1641377079977,0.00568423,3845.7,3845.3,0.51907332]
[1641377080277,0.00511581,3845.6,3845.3,0.51907332]
[1641377080478,1.9507058,3845.5,3845.3,0.51907332]
[1641377080677,1.95525319,3845.5,3845.3,0.51907332]
[1641377080877,0.00397896,3845.4,3845.3,0.51907332]
[1641377085329,0.00397896,3845.4,3845.3,2.81907332]
[1641377086071,0.00397896,3845.4,3845.3,0.51907332]
[1641377086878,0.00397896,3845.4,3845.2,0.379]
[1641377087080,0.00397896,3845.4,3844.7,30.0]
[1641377087276,0.6503479,3845.1,3844.7,30.0]
[1641377087674,0.00170527,3845.0,3844.7,30.0]
[1641377087876,0.00170527,3845.0,3844.8,0.64590985]
[1641377088075,0.00113685,3844.9,3844.8,0.64590985]
[1641377090316,0.00113685,3844.9,3844.8,3.29590985]
[1641377091120,0.00113685,3844.9,3844.8,0.64590985]
[1641377093221,0.00113685,3844.9,3844.8,3.29590985]
[1641377093484,0.00113685,3844.9,3844.8,0.29103262]
[1641377094687,0.00113685,3844.9,3844.7,30.0]
[1641377094883,0.65153615,3844.9,3844.7,30.0]
[1641377095086,1.3008827,3844.8,3844.7,30.0]
[1641377096083,1.6008827,3844.8,3844.7,24.7961559]
[1641377096284,1.3008827,3844.8,3844.7,24.7961559]
[1641377097520,1.6008827,3844.8,3844.7,24.7961559]
[1641377097725,1.3008827,3844.8,3844.7,24.7961559]
[1641377099830,1.6008827,3844.8,3844.7,24.7961559]
[1641377100028,1.9008827,3844.8,3844.7,24.7961559]
[1641377100228,3.2406827,3844.8,3844.7,24.7961559]
[1641377101180,2.3014827,3844.8,3844.7,24.7961559]
[1641377102386,2.3014827,3844.8,3844.7,19.5917474]
[1641377103083,3.1120827,3844.8,3844.7,19.5917474]
[1641377103283,2.1120827,3844.8,3844.7,19.5917474]
[1641377103483,2.9008827,3844.8,3844.7,14.3872055]
[1641377104831,3.9120827,3844.8,3844.7,14.3872055]
[1641377106032,3.7304827,3844.8,3844.7,14.3872055]
[1641377106232,3.5235827,3844.8,3844.7,14.3872055]
[1641377106636,1.9008827,3844.8,3844.7,14.3872055]
[1641377106833,1.6008827,3844.8,3844.7,14.3872055]
[1641377107033,1.9008827,3844.8,3844.7,14.3872055]
[1641377107932,3.25341917,3844.8,3844.7,14.3872055]
[1641377110388,3.25341917,3844.8,3844.7,9.1829355]
[1641377110586,1.9008827,3844.8,3844.7,9.1829355]
[1641377110987,0.00113685,3844.9,3844.7,3.9785955]
[1641377111185,0.00113685,3844.9,3844.8,3.629]
[1641377112088,0.00113685,3844.9,3844.8,0.379]
[1641377112936,0.00113685,3844.9,3844.8,3.129]
[1641377113333,0.00113685,3844.9,3844.8,0.379]
[1641377114136,0.00113685,3844.9,3844.7,3.9785955]
[1641377114336,0.30113685,3844.9,3844.7,3.9785955]
[1641377114937,0.00113685,3844.9,3844.7,3.9785955]
[1641377115137,0.30113685,3844.9,3844.7,3.9785955]
[1641377116577,0.00113685,3844.9,3844.7,3.9785955]
[1641377116778,0.30113685,3844.9,3844.7,3.9785955]
[1641377116992,0.00113685,3844.9,3844.7,3.9785955]
[1641377117384,0.00113685,3844.9,3844.8,4.879]
[1641377118485,0.65044,3845.0,3844.8,0.379]
[1641377119088,0.95044,3845.0,3844.8,0.379]
[1641377119488,0.3,3844.9,3844.8,0.379]
[1641377121326,0.3,3844.9,3844.7,3.9785955]
[1641377121527,0.6504198,3844.8,3844.7,3.9785955]
[1641377121927,0.9504198,3844.8,3844.7,3.9785955]
[1641377122329,1.2504198,3844.8,3844.7,3.9785955]
[1641377127434,0.6,3844.8,3844.7,3.9785955]
[1641377128035,0.6,3844.8,3844.7,7.44513337]
[1641377128237,0.65023,3845.2,3844.7,7.44513337]
[1641377128639,0.00227369,3845.1,3844.7,7.44513337]
[1641377128840,0.00227369,3845.1,3844.7,23.85618744]
[1641377129040,0.00170527,3845.0,3844.8,0.65024]
[1641377129239,0.00170527,3845.0,3844.9,7.04728252]
[1641377129440,0.65023,3845.2,3844.9,7.55208382]
[1641377129740,0.00227369,3845.1,3844.9,7.55208382]
[1641377130039,0.00170527,3845.0,3844.9,0.8838013]
[1641377130842,0.00170527,3845.0,3844.9,4.6838013]
[1641377131478,0.00170527,3845.0,3844.9,7.69793604]
[1641377131777,0.00170527,3845.0,3844.9,4.6838013]
[1641377132179,0.00170527,3845.0,3844.9,0.8838013]
[1641377132480,0.30170527,3845.0,3844.9,0.8838013]
[1641377132778,0.60170527,3845.0,3844.9,3.0838013]
[1641377133587,0.00170527,3845.0,3844.9,6.0988528]
[1641377133783,0.00170527,3845.0,3844.9,3.0838013]
[1641377138036,0.00170527,3845.0,3844.9,0.8838013]
[1641377139581,0.00170527,3845.0,3844.9,3.2838013]
[1641377139981,0.00170527,3845.0,3844.9,0.8838013]
[1641377141187,0.00170527,3845.0,3844.9,3.88801138]
[1641377141584,0.00170527,3845.0,3844.9,0.8838013]
[1641377141783,0.30170527,3845.0,3844.9,0.8838013]
[1641377142639,0.00170527,3845.0,3844.9,4.3838013]
[1641377144045,0.00170527,3845.0,3844.9,0.8838013]
[1641377146581,0.00170527,3845.0,3844.9,3.5338013]
[1641377147581,0.30170527,3845.0,3844.9,3.5338013]
[1641377147782,0.00170527,3845.0,3844.9,3.4838013]
[1641377150028,0.00170527,3845.0,3844.9,6.5036836]
[1641377150228,0.00170527,3845.0,3844.9,3.4838013]
[1641377150631,1.6005608,3845.5,3845.0,5.64856723]
[1641377150632,0.65029,3845.5,3845.0,5.64856723]
[1641377151028,0.00113685,3845.2,3845.0,5.64856723]
[1641377151428,0.00113685,3845.2,3845.0,0.64856723]
[1641377151632,0.00113685,3845.2,3844.9,0.8338013]
[1641377154185,0.00113685,3845.2,3844.9,0.329]
[1641377162889,0.00113685,3845.2,3844.9,0.9792963]
[1641377163089,0.00113685,3845.2,3844.9,0.329]
[1641377168334,0.00113685,3845.2,3844.9,0.9793289]
[1641377172652,0.63068044,3845.3,3845.0,2.8]
[1641377173058,0.63068044,3845.3,3845.0,2.80113685]
[1641377173257,0.63068044,3845.3,3845.0,0.00113685]
[1641377173660,0.63068044,3845.3,3845.0,0.65144695]
[1641377174260,0.65028,3845.4,3845.0,0.00113685]
[1641377174662,0.65028,3845.4,3844.8,2.91837637]
[1641377174865,0.65028,3845.4,3844.9,0.00170527]
[1641377175361,0.00227369,3845.6,3845.0,0.6502715]
[1641377175763,0.00170527,3845.5,3845.0,1.3005615]
[1641377176185,0.00113684,3845.4,3845.0,1.3005615]
[1641377176590,1.30059,3845.7,3845.0,1.3005615]
[1641377176591,0.00170527,3845.5,3845.0,1.3005615]
[1641377176789,0.6503,3845.4,3845.1,0.650292]
[1641377176991,0.65143684,3845.4,3845.1,0.650292]
[1641377177796,0.65143684,3845.4,3845.3,0.50516601]
[1641377177994,0.00113684,3845.4,3845.3,0.50516601]
[1641377182236,0.00113684,3845.4,3845.3,0.40516601]
[1641377186491,0.00113684,3845.4,3844.9,0.00170527]
[1641377186692,0.65038,3845.3,3844.9,0.00170527]
[1641377187737,0.65039,3845.2,3844.9,0.00170527]
[1641377187933,0.65039,3845.1,3844.9,0.00170527]
[1641377191097,0.65039,3845.1,3844.9,0.65203697]
[1641377194200,0.65039,3845.1,3845.0,0.379]
[1641377196529,0.65039,3845.1,3845.0,3.27555176]
[1641377196730,0.65039,3845.1,3845.0,0.379]
[1641377197731,0.65039,3845.1,3845.0,0.374942]
[1641377198132,0.65039,3845.1,3845.0,3.29676866]
[1641377198588,0.00113684,3845.4,3845.0,3.29676866]
[1641377198788,0.00113684,3845.4,3845.1,1.81473346]
[1641377198989,0.00113684,3845.4,3845.2,3.65316562]
[1641377199190,0.00113684,3845.4,3845.2,1.0092]
[1641377199387,0.00113684,3845.4,3845.3,9.47416562]
[1641377199588,0.00113684,3845.4,3845.3,9.85316562]
[1641377199787,0.00113684,3845.4,3845.3,7.22917]
[1641377200189,0.00113684,3845.4,3845.3,25.78333562]
[1641377200390,0.00113684,3845.4,3845.3,22.50917]
[1641377201489,0.00669533,3846.3,3845.4,6.3]
[1641377201691,0.65014,3846.1,3845.8,1.33242057]
[1641377201891,0.65014,3846.1,3845.9,0.379]
[1641377202939,0.65014,3846.1,3845.9,0.89605368]
[1641377203145,0.65014,3846.1,3845.9,3.86493925]
[1641377203340,0.65014,3846.1,3845.9,0.89605368]
[1641377203546,0.65014,3846.1,3845.9,3.85443682]
[1641377203745,0.65014,3846.1,3845.9,0.89605368]
[1641377204149,0.65014,3846.1,3845.4,0.379]
[1641377204347,0.65026,3845.8,3845.4,1.6794137]
[1641377204846,0.00170527,3845.7,3845.4,1.6794137]
[1641377205247,0.00113685,3845.6,3845.4,1.6794137]
[1641377205446,0.00113685,3845.6,3845.5,0.55937815]
[1641377205650,1.30222527,3845.7,3845.5,0.55937815]
[1641377205849,0.00113685,3845.6,3845.5,0.55937815]
[1641377206295,0.00113685,3845.6,3845.5,3.48574788]
[1641377207698,0.00113685,3845.6,3845.5,0.55937815]
[1641377207898,0.00113685,3845.6,3845.5,3.30937815]
[1641377209734,0.00113685,3845.6,3845.5,6.35766562]
[1641377213037,0.00113685,3845.6,3845.5,0.55937815]
[1641377213690,0.00113685,3845.6,3845.5,3.44418464]
[1641377213891,0.00113685,3845.6,3845.5,0.55937815]
[1641377214689,0.00113685,3845.6,3845.4,1.3004137]
[1641377214891,0.00113685,3845.6,3845.1,0.44247416]
[1641377214892,0.00113685,3845.6,3845.1,0.38327416]
[1641377215089,0.65038,3845.5,3845.1,0.38327416]
[1641377215290,0.65038,3845.5,3845.2,0.00113684]
[1641377215690,0.64470831,3845.5,3845.2,0.00113684]
[1641377215993,0.64470831,3845.5,3845.3,0.50278388]
[1641377217342,4.63683537,3846.7,3845.4,25.23316562]
[1641377217540,4.63683537,3846.7,3845.4,25.23430246]
[1641377217743,0.00227369,3846.0,3845.5,0.5467136]
[1641377217943,0.00227369,3846.0,3845.6,0.379]
[1641377218144,0.00170527,3845.9,3845.6,0.379]
[1641377218342,0.00170527,3845.9,3845.7,1.9503836]
[1641377218553,0.00113685,3845.8,3845.7,1.9503836]
[1641377218947,0.00113685,3845.8,3845.7,4.7505036]
[1641377219748,0.00113685,3845.8,3845.7,5.1295036]
[1641377219951,0.00113685,3845.8,3845.7,1.6792636]
[1641377220148,0.00113685,3845.8,3845.7,0.379]
[1641377221013,0.00113685,3845.8,3845.7,0.37789]
[1641377221808,0.00113685,3845.8,3845.7,3.62789]
[1641377223214,0.00113685,3845.8,3845.7,6.8596483]
[1641377223414,0.64904685,3846.1,3845.8,5.2]
[1641377223614,0.64904685,3846.1,3845.9,0.379]
[1641377223817,0.00113684,3846.0,3845.7,0.6501442]
[1641377224030,0.00113684,3846.0,3845.8,0.379]
[1641377224414,0.00113684,3846.0,3845.8,0.36795]
[1641377230386,3.23784838,3846.0,3845.6,1.3003095]
[1641377230586,0.65029,3845.9,3845.5,0.5467136]
[1641377230785,0.65029,3845.9,3845.4,0.00113684]
[1641377230986,0.65029,3845.9,3845.6,0.00113684]
[1641377231185,0.65029,3845.9,3845.4,0.0022737]
[1641377231590,0.65029,3845.9,3845.5,0.6502553]
[1641377231987,0.65029,3845.9,3845.6,0.00113685]
[1641377233038,0.65029,3845.9,3845.6,0.65136005]
[1641377234444,0.65029,3845.9,3845.7,3.61571154]
[1641377234640,0.00113684,3846.0,3845.8,3.23671154]
[1641377234839,3.28753687,3846.8,3845.9,15.6713037]
[1641377235042,3.28753687,3846.8,3846.2,0.6499857]
[1641377235244,0.00397897,3846.7,3846.3,0.379]
[1641377235440,0.64998,3846.6,3846.4,1.029]
[1641377235745,0.64998,3846.6,3846.4,0.65]
[1641377235746,0.00284212,3846.5,3846.4,0.65]
[1641377236002,0.00284212,3846.5,3846.3,1.2999736]
[1641377236402,0.64998,3846.6,3846.3,1.2999736]
[1641377236403,0.0022737,3846.4,3846.3,1.2999736]
[1641377236601,0.0022737,3846.4,3846.0,1.30019]
[1641377236805,0.0022737,3846.4,3845.6,0.00113685]
[1641377237003,3.23671154,3846.6,3845.6,0.00113685]
[1641377237004,0.65018,3846.2,3845.6,0.00113685]
[1641377237201,0.65018,3846.2,3845.4,0.00341054]
[1641377237403,0.39750376,3846.2,3845.4,0.00341054]
[1641377238607,0.65028,3845.9,3845.6,0.6502458]
[1641377239107,0.65028,3845.9,3845.7,0.00170527]
[1641377239314,0.65028,3845.9,3845.8,0.379]
[1641377239512,1.30056,3846.1,3845.8,0.379]
[1641377239513,0.65012,3846.1,3845.8,0.379]
[1641377239756,1.30308212,3846.5,3846.1,0.650075]
[1641377239946,0.00284212,3846.5,3846.1,0.650075]
[1641377240147,0.0022737,3846.4,3846.1,0.650075]
[1641377240548,0.00170527,3846.3,3846.1,0.650075]
[1641377240848,0.00113685,3846.2,3846.1,0.650075]
[1641377241650,0.00113685,3846.2,3845.8,0.65136364]
[1641377241853,0.00113685,3846.2,3845.8,0.00113684]
[1641377242250,0.00113685,3846.2,3845.6,0.00227369]
[1641377242651,0.65023,3846.1,3845.6,0.00227369]
[1641377242951,0.65023,3846.1,3845.4,0.65370594]
[1641377243151,0.65023,3846.1,3845.4,0.00341054]
[1641377243350,0.65023,3846.1,3845.5,0.00284211]
[1641377243596,0.65033,3845.5,3845.0,0.00568423]
[1641377244596,0.65033,3845.5,3845.0,0.65599423]
[1641377244796,0.65033,3845.5,3845.1,1.3005466]
[1641377244998,0.65033,3845.5,3845.1,1.30566241]
[1641377245199,0.65033,3845.5,3845.1,1.17381621]
[1641377245500,0.00113685,3845.4,3845.1,1.17381621]
[1641377246099,0.00113685,3845.4,3845.2,0.6502706]
[1641377246298,0.00113685,3845.4,3845.3,3.779]
[1641377246901,0.00113685,3845.4,3845.3,4.079]
[1641377247371,0.00113685,3845.4,3845.3,7.62919]
[1641377247969,0.00113685,3845.4,3845.3,7.32919]
[1641377248774,0.00113685,3845.4,3845.3,7.62919]
[1641377249777,0.00113685,3845.4,3845.3,7.32919]
[1641377253898,0.00113685,3845.4,3845.3,7.62919]
[1641377254298,0.00113685,3845.4,3845.3,10.29143393]
[1641377254498,0.00113685,3845.4,3845.3,7.62919]
[1641377254748,0.00113685,3845.4,3845.3,4.72919]
[1641377255745,0.00113685,3845.4,3845.3,3.779]
[1641377255944,0.00113685,3845.4,3845.3,4.079]
[1641377256146,0.00113685,3845.4,3845.3,3.779]
[1641377256350,0.00113685,3845.4,3845.3,4.079]
[1641377257256,0.00113685,3845.4,3845.3,2.829]
[1641377259091,0.00113685,3845.4,3845.3,5.90552426]
[1641377259492,0.00113685,3845.4,3845.3,2.529]
[1641377260097,0.00113685,3845.4,3845.3,5.48454677]
[1641377260294,0.00113685,3845.4,3845.3,9.33454677]
[1641377260496,0.00113685,3845.4,3845.3,9.98473677]
[1641377261193,0.00113685,3845.4,3845.3,11.28473677]
[1641377261993,0.00113685,3845.4,3845.3,10.28473677]
[1641377262855,0.00113685,3845.4,3845.3,6.43473677]
[1641377265462,0.33062472,3845.7,3845.4,6.3]
[1641377265663,0.33062472,3845.7,3845.5,2.87317222]
[1641377265863,0.00113684,3845.6,3845.5,3.40823648]
[1641377266110,0.00113684,3845.6,3845.5,0.53506426]
[1641377266310,0.00113684,3845.6,3845.4,1.6793529]
[1641377267311,0.00113684,3845.6,3845.4,2.14140247]
[1641377267714,0.00113684,3845.6,3845.4,2.79158247]
[1641377267914,0.00113684,3845.6,3845.5,7.7817159]
[1641377268111,0.00113684,3845.6,3845.5,7.0817159]
[1641377268313,0.00113684,3845.6,3845.5,3.9]
[1641377268513,0.00113684,3845.6,3845.5,7.12915552]
[1641377269514,0.00113684,3845.6,3845.5,8.23011178]
[1641377269946,0.00113684,3845.6,3845.5,7.20815552]
[1641377270448,0.00113684,3845.6,3845.5,7.85832552]
[1641377271245,0.00113684,3845.6,3845.5,4.92917]
[1641377271847,0.00113684,3845.6,3845.5,4.279]
[1641377272049,0.22594979,3845.8,3845.4,1.76240247]
[1641377272247,0.22594979,3845.8,3845.4,0.6501729]
[1641377277849,0.22594979,3845.8,3845.4,1.3004929]
[1641377278449,1.18128058,3845.7,3845.1,0.650339]
[1641377278650,0.65038,3845.5,3845.1,0.650339]
[1641377278849,0.65038,3845.5,3845.2,0.00227369]
[1641377279450,0.65038,3845.5,3845.2,0.60433374]
[1641377279649,0.65038,3845.5,3845.2,1.25469374]
[1641377279850,0.65038,3845.5,3845.3,0.00170527]
[1641377280049,0.65038,3845.5,3845.3,0.65200027]
[1641377280450,0.65038,3845.5,3845.4,0.00113685]
[1641377283995,0.65038,3845.5,3845.4,0.56759022]
[1641377284596,0.65038,3845.5,3845.4,0.94659022]
[1641377285251,0.65038,3845.5,3845.4,1.24659022]
[1641377286854,0.65038,3845.5,3845.4,0.94659022]
[1641377287053,0.65038,3845.5,3845.4,1.24659022]
[1641377287456,0.65038,3845.5,3845.4,0.94659022]
[1641377288055,0.65038,3845.5,3845.4,1.24659022]
[1641377289398,0.65038,3845.5,3845.4,0.94659022]
[1641377292002,0.65038,3845.5,3845.4,0.00113685]
[1641377302852,0.65038,3845.5,3845.4,10.00113685]
[1641377303505,0.65038,3845.5,3845.4,20.00113685]
[1641377305221,1.30074,3845.5,3845.4,20.00113685]
[1641377308158,1.30074,3845.5,3845.4,18.07683685]
[1641377308159,9.30911448,3845.5,3845.4,18.07683685]
[1641377308355,3.17648899,3845.5,3845.4,18.07683685]
[1641377308757,4.17648899,3845.5,3845.4,12.87265685]
[1641377308955,4.17648899,3845.5,3845.4,12.83265685]
[1641377309355,4.17648899,3845.5,3845.4,7.62863685]
[1641377309555,4.55548899,3845.5,3845.4,7.62863685]
[1641377309955,4.55548899,3845.5,3845.4,2.42477685]
[1641377309956,4.32758899,3845.5,3845.4,2.42477685]
[1641377310351,1.40840442,3844.7,3843.8,0.65048]
[1641377310556,0.65046,3844.2,3843.4,2.40351093]
[1641377310854,0.65046,3844.2,3843.9,0.00852635]
[1641377311103,0.65046,3844.2,3844.1,0.5361296]
[1641377311297,0.65046,3844.2,3843.9,0.00852635]
[1641377311499,0.65046,3844.2,3844.1,0.0073895]
[1641377311701,1.301,3844.3,3843.7,0.0096632]
[1641377312105,0.65047,3844.3,3843.7,0.0096632]
[1641377312499,0.65047,3844.3,3844.1,0.6504245]
[1641377312893,0.65047,3844.3,3844.2,0.00682108]
[1641377317364,0.65047,3844.3,3843.8,0.00909477]
[1641377317962,0.65047,3844.3,3843.6,0.01023162]
[1641377318258,0.65047,3844.3,3843.9,0.59167392]
[1641377318701,0.65047,3844.3,3844.0,0.00795793]
[1641377320704,0.65047,3844.3,3844.0,3.13318522]
[1641377321206,0.65047,3844.3,3844.1,0.0073895]
[1641377321502,0.65047,3844.3,3844.1,0.6577436]
[1641377321704,0.65047,3844.3,3844.2,3.18884625]
[1641377321903,0.5653687,3844.3,3844.2,3.19566733]
[1641377322349,0.5653687,3844.3,3844.2,2.95296455]
[1641377322653,0.5653687,3844.3,3844.2,0.00682108]
[1641377322948,0.5653687,3844.3,3844.2,2.97726907]
[1641377323249,1.30092,3844.6,3844.3,0.6503304]
[1641377323250,0.65032,3844.6,3844.3,0.6503304]
[1641377323555,0.65032,3844.6,3844.4,0.00568423]
[1641377323953,0.65032,3844.6,3844.3,1.67729874]
[1641377324153,0.65032,3844.6,3844.4,3.94279376]
[1641377324353,0.65032,3844.6,3844.5,3.2655172]
[1641377324553,0.65032,3844.6,3844.5,3.27063301]
[1641377325852,0.65032,3844.6,3844.5,3.22063301]
[1641377327103,0.65032,3844.6,3844.5,2.94024599]
[1641377327303,0.65032,3844.6,3844.5,0.00511581]
[1641377327711,0.65032,3844.6,3844.5,2.9535985]
[1641377328104,0.0097768,3845.0,3844.5,2.9535985]
[1641377328105,0.0097768,3845.0,3844.7,0.65024]
[1641377328306,0.0097768,3845.0,3844.8,4.3546587]
[1641377328503,0.0097768,3845.0,3844.9,8.54211592]
[1641377328710,0.0097768,3845.0,3844.9,9.92395803]
[1641377328908,0.0097768,3845.0,3844.9,10.39086647]
[1641377329308,1.30042,3845.5,3845.2,0.65019]
[1641377329508,0.0097768,3845.4,3845.3,3.7965747]
[1641377330354,0.0097768,3845.4,3845.3,3.66392636]
[1641377330753,0.0097768,3845.4,3845.2,0.65019]
[1641377331156,1.30042,3845.5,3845.1,0.379]
[1641377331554,1.30042,3845.5,3845.2,0.00113684]
[1641377333902,1.30042,3845.5,3845.2,0.65135684]
[1641377334705,0.00284212,3845.9,3845.2,0.00113684]
[1641377335103,0.0022737,3845.8,3845.2,0.00113684]
[1641377335302,0.0022737,3845.8,3845.0,0.00227369]
[1641377335506,0.00170527,3845.7,3845.0,1.00227369]
[1641377335704,0.00170527,3845.7,3845.0,0.00227369]
[1641377335905,0.00113685,3845.6,3845.1,0.00170527]
[1641377336105,0.00113685,3845.6,3844.9,0.00284211]
[1641377336505,0.00113685,3845.6,3844.9,3.00459092]
[1641377336705,0.00113685,3845.6,3844.9,3.0473131]
[1641377336905,0.00113685,3845.6,3845.0,0.00227369]
[1641377337352,0.00113685,3845.6,3844.9,3.03443942]
[1641377337554,0.00113685,3845.6,3845.2,0.51948537]
[1641377339953,0.00113685,3845.6,3845.0,0.00227369]
[1641377339954,0.65034,3845.5,3845.0,0.00227369]
[1641377340353,0.65034,3845.5,3844.9,0.00284211]
[1641377341003,0.65034,3845.5,3845.3,0.49306013]
[1641377341201,0.00113685,3845.6,3845.3,0.49306013]
[1641377343414,0.00113685,3845.6,3844.9,2.99931675]
[1641377343809,0.00113685,3845.6,3845.0,0.00227369]
[1641377344610,0.00113685,3845.6,3845.5,0.60763069]
[1641377344843,0.00113685,3845.6,3845.5,3.68766808]
[1641377345045,0.00113685,3845.6,3845.5,0.60763069]
[1641377346546,0.00113685,3845.6,3845.2,0.379]
[1641377347246,0.00113685,3845.6,3845.3,2.97283661]
[1641377347646,0.00113685,3845.6,3845.5,0.60753164]
[1641377349008,0.00113685,3845.6,3845.0,0.00227369]
[1641377349306,0.00113685,3845.6,3844.8,0.00341054]
[1641377349903,0.00113685,3845.6,3845.2,0.52295577]
[1641377350504,0.65034,3845.5,3845.2,0.52295577]
[1641377351905,0.65034,3845.5,3844.6,0.00454738]
[1641377352554,0.65034,3845.5,3844.5,3.09077598]
[1641377352852,0.65034,3845.5,3844.6,0.00454738]
[1641377353051,0.65034,3845.5,3845.2,0.44172998]
[1641377355157,0.65034,3845.5,3844.6,1.0025518]
[1641377355158,0.95034,3845.5,3844.6,0.00454738]
[1641377355357,0.65042,3845.1,3844.6,0.00454738]
[1641377355559,0.65042,3845.1,3844.3,0.00625266]
[1641377356202,0.65042,3845.1,3844.7,0.46792966]
[1641377356500,0.65042,3845.1,3844.8,0.00341054]
[1641377357099,1.25042,3845.1,3844.8,0.00341054]
[1641377357499,0.65042,3845.1,3844.8,0.00341054]
[1641377358103,0.65042,3845.1,3844.7,0.4832978]
[1641377358304,0.00113685,3845.0,3844.7,0.4832978]
[1641377358708,0.00113685,3845.0,3844.2,10.0]
[1641377358709,0.00113685,3845.0,3844.8,0.47540576]
[1641377359106,0.65047,3844.7,3844.2,10.0]
[1641377359604,0.65047,3844.7,3844.3,0.00284212]
[1641377360247,3.84296941,3844.7,3844.3,0.56660059]
[1641377360447,3.81608268,3844.7,3844.3,0.56660059]
[1641377360645,3.81608268,3844.7,3844.4,0.00227369]
[1641377360849,3.81608268,3844.7,3844.3,0.56375847]
[1641377361148,0.00113685,3844.6,3844.3,0.56375847]
[1641377365814,0.00113685,3844.6,3844.2,10.0]
[1641377366007,1.11434165,3844.5,3844.2,10.0]
[1641377366207,4.61238262,3844.5,3844.2,10.0]
[1641377366406,4.91238262,3844.5,3844.2,4.79531]
[1641377367010,0.65059,3843.9,3843.4,0.46207758]
[1641377367449,3.8869433,3843.9,3843.5,0.00511581]
[1641377367649,0.65059,3843.9,3843.5,0.00511581]
[1641377383352,1.30118,3843.9,3843.5,0.00511581]
[1641377383756,1.30118,3843.9,3843.1,0.00738951]
[1641377384557,1.30118,3843.9,3843.1,0.49212742]
[1641377384758,0.49551295,3843.7,3843.1,0.49212742]
[1641377385060,0.65061,3843.5,3843.2,0.00682108]
[1641377386299,0.65062,3843.4,3843.0,0.00795793]
[1641377386800,0.65062,3843.4,3842.9,0.00852635]
[1641377387201,0.65062,3843.4,3842.9,0.59589042]
[1641377387606,0.65062,3843.4,3843.0,0.00795793]
[1641377388804,0.65061,3843.2,3843.0,0.00795793]
[1641377394903,0.42769753,3843.2,3843.0,0.00795793]
[1641377398767,0.21972094,3843.2,3843.0,0.00795793]
[1641377399170,0.21972094,3843.2,3843.0,0.65851793]
[1641377399369,0.21972094,3843.2,3843.0,1.03751793]
[1641377399568,0.21972094,3843.2,3843.1,0.00738951]
[1641377401700,0.21972094,3843.2,3843.1,3.05670554]
[1641377402201,0.21972094,3843.2,3843.1,0.00738951]
[1641377405153,0.21972094,3843.2,3843.0,0.00795793]
[1641377406556,0.21972094,3843.2,3842.9,0.65914635]
[1641377406756,0.21972094,3843.2,3843.0,0.00795793]